bitfinex/quotes_SOLUSD_20250717
["timestamp","ask_amount","ask_price","bid_price","bid_amount"]
[1752769579674,10.0,172.89,172.87,26.0]
[1752769579874,10.0,172.88,172.84,48.57038172]
[1752769580095,10.0,172.87,172.85,30.54]
[1752769580301,5.81345415,172.91,172.85,30.54]
[1752769580302,10.0,172.88,172.85,30.54]
[1752769580480,10.0,172.87,172.86,0.57850283]
[1752769580679,10.0,172.87,172.85,30.82]
[1752769580870,10.0,172.88,172.86,5.78502834]
[1752769581071,10.0,172.88,172.84,0.57856977]
[1752769581289,10.0,172.84,172.83,16.78468397]
[1752769581490,10.0,172.86,172.83,62.50917179]
[1752769581675,10.0,172.86,172.85,9.35845531]
[1752769584693,10.0,172.85,172.83,30.58]
[1752769584885,10.0,172.85,172.84,9.35845531]
[1752769585202,10.0,172.85,172.82,32.36472319]
[1752769585203,10.0,172.85,172.82,26.57863673]
[1752769585401,10.0,172.85,172.8,9.35845531]
[1752769585402,10.0,172.81,172.8,9.35845531]
[1752769585699,10.0,172.81,172.79,9.35845531]
[1752769585880,10.7,172.81,172.8,9.35845531]
[1752769586075,10.0,172.82,172.8,9.35845531]
[1752769586277,10.0,172.81,172.8,26.0]
[1752769586591,10.7,172.81,172.76,5.78826071]
[1752769586787,10.0,172.8,172.77,47.36468397]
[1752769586974,10.0,172.78,172.77,47.36468397]
[1752769587169,10.0,172.8,172.77,47.36468397]
[1752769587370,10.0,172.79,172.77,47.36468397]
[1752769587591,10.0,172.8,172.78,9.35845531]
[1752769587795,10.0,172.8,172.77,30.58]
[1752769587796,10.0,172.78,172.77,30.58]
[1752769587981,0.7,172.8,172.77,30.58]
[1752769587982,10.0,172.79,172.77,30.58]
[1752769588307,10.0,172.77,172.72,0.57897174]
[1752769588515,10.7,172.76,172.71,16.84468397]
[1752769588808,10.7,172.76,172.74,26.0]
[1752769588990,10.0,172.76,172.75,9.35845531]
[1752769589190,15.78837693,172.76,172.75,9.35845531]
[1752769589408,10.0,172.74,172.73,9.35845531]
[1752769589912,10.0,172.75,172.73,9.35845531]
[1752769590201,10.0,172.74,172.73,16.78468397]
[1752769591102,10.0,172.74,172.72,5.78963081]
[1752769591304,10.7,172.74,172.73,9.35845531]
[1752769591493,10.0,172.74,172.73,9.35845531]
[1752769591803,10.0,172.75,172.73,9.35845531]
[1752769592011,10.0,172.74,172.71,36.4300041]
[1752769592177,10.0,172.74,172.73,9.35845531]
[1752769592682,10.0,172.75,172.73,9.35845531]
[1752769592888,10.0,172.75,172.74,15.14750243]
[1752769593093,10.0,172.75,172.74,9.35845531]
[1752769593490,10.0,172.78,172.75,42.78468397]
[1752769593690,30.61,172.85,172.75,42.78468397]
[1752769593691,10.0,172.8,172.77,9.35845531]
[1752769593891,10.0,172.8,172.79,26.14313928]
[1752769594117,10.0,172.84,172.82,26.0]
[1752769594406,10.03,172.85,172.83,40.53705856]
[1752769594610,10.03,172.85,172.84,26.14313928]
[1752769594611,0.03,172.85,172.84,26.14313928]
[1752769594783,0.03,172.85,172.84,31.92883703]
[1752769595481,0.03,172.85,172.84,32.20883703]
[1752769595680,0.03,172.85,172.84,62.80883703]
[1752769596107,0.03,172.85,172.84,63.3874068]
[1752769598306,10.03,172.91,172.84,30.46696721]
[1752769598498,10.03,172.91,172.9,9.35845531]
[1752769599620,10.74,172.91,172.9,9.35845531]
[1752769599801,10.0,172.88,172.87,30.56]
[1752769600007,10.0,172.87,172.85,17.36322027]
[1752769600316,10.0,172.87,172.86,39.91845531]
[1752769600507,10.0,172.88,172.86,39.91845531]
[1752769600698,10.0,172.88,172.87,9.35845531]
[1752769600901,10.0,172.88,172.87,9.93692468]
[1752769601225,10.0,172.88,172.87,26.72160865]
[1752769601536,10.03,172.91,172.89,26.0]
[1752769601739,10.03,172.91,172.9,57.28150827]
[1752769601920,10.0,172.93,172.9,66.91996358]
[1752769602222,10.1,172.96,172.93,42.78468397]
[1752769602417,10.1,172.96,172.95,9.35845531]
[1752769603395,16.59168897,172.96,172.95,9.35845531]
[1752769603593,10.81,172.96,172.95,9.35845531]
[1752769605024,0.1,172.96,172.95,9.35845531]
[1752769605408,10.1,172.96,172.95,9.35845531]
[1752769606015,0.1,172.96,172.95,9.35845531]
[1752769606319,10.1,172.96,172.95,9.35845531]
[1752769607030,0.1,172.96,172.95,9.35845531]
[1752769607364,0.1,172.96,172.95,31.9251572]
[1752769607535,0.03,172.98,172.97,52.14313928]
[1752769607830,10.03,172.98,172.97,83.24127421]
[1752769608203,10.03,172.98,172.97,65.87845531]
[1752769608398,10.74,172.98,172.97,65.87845531]
[1752769608912,10.03,172.98,172.97,35.35845531]
[1752769609109,10.03,172.98,172.97,57.92448864]
[1752769609324,0.1,173.02,173.01,42.78468397]
[1752769609521,0.1,173.09,173.01,92.59959586]
[1752769609522,10.0,173.07,173.01,92.59959586]
[1752769609734,10.0,173.08,173.06,9.35845531]
[1752769609936,0.1,173.09,173.07,65.97845531]
[1752769610153,0.1,173.09,173.08,26.14313928]
[1752769610727,0.1,173.09,173.08,31.92081434]
[1752769610902,10.0,173.15,173.12,16.78468397]
[1752769611108,10.0,173.17,173.14,18.71691062]
[1752769611313,10.0,173.19,173.16,35.35845531]
[1752769611516,10.71,173.19,173.18,9.35845531]
[1752769611909,10.0,173.19,173.18,9.35845531]
[1752769612546,0.03,173.2,173.19,16.78468397]
[1752769612731,10.03,173.2,173.19,26.72053982]
[1752769612932,10.03,173.2,173.19,57.32053982]
[1752769613413,10.03,173.2,173.19,0.57740054]
[1752769613622,10.74,173.2,173.19,39.95845531]
[1752769613822,10.03,173.2,173.19,39.95845531]
[1752769614431,10.03,173.2,173.19,56.74313928]
[1752769614748,10.03,173.2,173.19,39.95845531]
[1752769615127,0.03,173.2,173.19,39.95845531]
[1752769615322,0.03,173.2,173.19,63.09454524]
[1752769615523,0.2,173.22,173.21,42.78468397]
[1752769615726,10.03,173.23,173.22,16.78468397]
[1752769615922,10.03,173.23,173.22,26.14313928]
[1752769616123,0.03,173.23,173.22,26.14313928]
[1752769616335,10.03,173.23,173.22,26.14313928]
[1752769616563,6.51267216,173.23,173.22,9.35845531]
[1752769616747,10.0,173.17,173.15,0.57753393]
[1752769617047,10.0,173.17,173.16,56.74313928]
[1752769617242,10.0,173.13,173.1,0.57770075]
[1752769617424,10.0,173.16,173.12,9.35845531]
[1752769617624,10.71,173.16,173.15,9.35845531]
[1752769617859,10.0,173.16,173.15,39.95845531]
[1752769618260,10.0,173.16,173.15,30.6]
[1752769618425,10.0,173.16,173.15,39.95845531]
[1752769619363,10.0,173.14,173.13,26.0]
[1752769619527,10.0,173.15,173.13,65.95845531]
[1752769619847,10.71,173.15,173.14,9.35845531]
[1752769620023,10.71,173.15,173.13,56.68]
[1752769620223,10.71,173.14,173.13,56.68]
[1752769620426,10.0,173.15,173.13,66.03845531]
[1752769620648,10.0,173.14,173.13,56.68]
[1752769621029,10.0,173.15,173.13,56.68]
[1752769621227,10.0,173.14,173.13,56.68]
[1752769621448,10.0,173.14,173.13,79.24069043]
[1752769621655,10.0,173.14,173.12,16.78468397]
[1752769621834,10.0,173.14,173.13,56.80313928]
[1752769622145,10.0,173.14,173.13,56.82313928]
[1752769622550,10.71,173.14,173.13,26.0]
[1752769622860,10.0,173.11,173.1,30.68]
[1752769623030,10.0,173.11,173.1,40.03845531]
[1752769623860,10.0,173.11,173.1,56.82313928]
[1752769624028,10.0,173.12,173.1,56.82313928]
[1752769624223,10.0,173.12,173.11,40.03845531]
[1752769624622,10.0,173.12,173.11,56.82313928]
[1752769624829,10.0,173.14,173.11,56.82313928]
[1752769625053,10.0,173.14,173.13,9.35845531]
[1752769625251,10.0,173.14,173.13,56.82313928]
[1752769625436,10.0,173.14,173.13,62.59914574]
[1752769625630,10.0,173.15,173.14,16.78468397]
[1752769625843,10.0,173.15,173.14,26.72070656]
[1752769626145,10.0,173.17,173.16,42.78468397]
[1752769626349,10.0,173.17,173.16,83.40063985]
[1752769626954,10.0,173.18,173.16,83.40063985]
[1752769627326,10.0,173.19,173.17,31.91781156]
[1752769627559,10.0,173.19,173.18,57.38057316]
[1752769628476,10.03,173.23,173.18,57.38057316]
[1752769628642,10.03,173.23,173.22,9.35845531]
[1752769628974,10.69,173.23,173.22,9.35845531]
[1752769629528,0.03,173.23,173.22,56.80313928]
[1752769629752,10.03,173.23,173.22,56.80313928]
[1752769630846,10.69,173.23,173.22,9.35845531]
[1752769632027,10.03,173.23,173.22,9.35845531]
[1752769632432,10.03,173.23,173.22,32.49344524]
[1752769632643,0.03,173.23,173.22,32.49344524]
[1752769632844,0.03,173.23,173.22,58.77344524]
[1752769633247,0.2,173.24,173.23,42.78468397]
[1752769633564,0.2,173.24,173.23,92.40159459]
[1752769633766,0.2,173.24,173.23,98.17426675]
[1752769633958,0.2,173.24,173.23,83.34040649]
[1752769634164,0.86,173.24,173.23,83.34040649]
[1752769634362,16.63233895,173.24,173.23,9.35845531]
[1752769634560,10.0,173.19,173.18,19.74065579]
[1752769634761,10.0,173.18,173.15,0.57753393]
[1752769634944,10.0,173.2,173.18,16.78468397]
[1752769635146,10.0,173.2,173.19,39.97845531]
[1752769635350,10.0,173.2,173.19,56.76313928]
[1752769635862,10.0,173.2,173.19,62.5371447]
[1752769636064,10.0,173.21,173.2,16.78468397]
[1752769636360,10.0,173.21,173.2,26.14313928]
[1752769637971,10.0,173.21,173.2,56.74313928]
[1752769638158,10.66,173.21,173.2,39.95845531]
[1752769638643,10.66,173.21,173.2,9.35845531]
[1752769638846,10.0,173.2,173.19,9.35845531]
[1752769639165,10.66,173.2,173.19,9.35845531]
[1752769639584,10.0,173.18,173.17,9.35845531]
[1752769639901,10.66,173.18,173.17,9.35845531]
[1752769640075,10.0,173.18,173.17,9.35845531]
[1752769640255,10.66,173.18,173.17,9.35845531]
[1752769640684,10.66,173.18,173.15,30.58]
[1752769640850,10.0,173.17,173.15,30.58]
[1752769641053,10.0,173.16,173.15,30.58]
[1752769642069,10.0,173.16,173.15,39.93845531]
[1752769642268,16.43500577,173.16,173.14,9.35845531]
[1752769642567,16.43500577,173.16,173.1,0.57770075]
[1752769642568,10.0,173.12,173.11,30.56]
[1752769642774,10.0,173.12,173.11,39.91845531]
[1752769643978,10.0,173.12,173.11,9.35845531]
[1752769643979,10.66,173.12,173.11,9.35845531]
[1752769645176,10.0,173.12,173.11,9.35845531]
[1752769645379,10.0,173.12,173.11,39.89845531]
[1752769645587,10.66,173.12,173.11,39.89845531]
[1752769646482,10.0,173.12,173.11,39.89845531]
[1752769646674,10.66,173.12,173.11,39.89845531]
[1752769647493,10.66,173.12,173.11,30.54]
[1752769647494,16.43634011,173.12,173.11,30.54]
[1752769647707,10.0,173.11,173.1,9.35845531]
[1752769647891,10.66,173.11,173.09,9.35845531]
[1752769648085,10.66,173.1,173.09,9.35845531]
[1752769648491,16.43700751,173.1,173.09,9.35845531]
[1752769648886,10.0,173.07,173.06,30.52]
[1752769649088,10.66,173.07,173.06,39.87845531]
[1752769649410,10.66,173.07,173.03,9.35845531]
[1752769649411,10.0,173.04,173.03,9.35845531]
[1752769649612,10.66,173.04,173.02,9.35845531]
[1752769649918,10.0,173.02,173.0,39.89845531]
[1752769650112,10.0,173.0,172.98,30.54]
[1752769650395,10.66,172.99,172.98,30.54]
[1752769650696,10.0,172.97,172.96,30.6]
[1752769650878,10.66,172.97,172.96,30.6]
[1752769651075,10.66,172.97,172.96,0.06]
[1752769652085,10.0,172.97,172.96,9.41845531]
[1752769652499,10.0,172.98,172.96,31.9848229]
[1752769652677,10.0,173.0,172.99,26.0]
[1752769653003,10.0,172.98,172.96,30.62]
[1752769653299,10.66,172.97,172.96,0.06]
[1752769653881,10.0,172.97,172.96,36.44168362]
[1752769654297,10.0,172.98,172.96,45.80013893]
[1752769654603,10.0,172.98,172.97,9.35845531]
[1752769655094,10.0,172.99,172.97,9.35845531]
[1752769655298,10.0,172.99,172.98,39.95845531]
[1752769655502,10.0,172.99,172.98,30.6]
[1752769655800,10.0,172.99,172.98,39.95845531]
[1752769656204,10.67,172.99,172.98,39.95845531]
[1752769656581,10.67,172.99,172.98,9.35845531]
[1752769659954,10.0,172.99,172.98,39.93845531]
[1752769660727,10.0,173.0,172.98,56.72313928]
[1752769661026,10.0,173.01,172.99,9.35845531]
[1752769661203,10.0,173.01,173.0,39.93845531]
[1752769663221,10.67,173.01,173.0,9.35845531]
[1752769663402,10.0,172.98,172.96,0.06]
[1752769663603,10.0,172.98,172.97,9.35845531]
[1752769663803,10.67,172.98,172.97,9.35845531]
[1752769664004,10.67,172.98,172.96,0.06]
[1752769664217,10.67,172.98,172.97,35.35845531]
[1752769664908,10.0,172.97,172.96,9.41845531]
[1752769665097,10.67,172.97,172.96,9.41845531]
[1752769665822,16.45134936,172.97,172.96,9.41845531]
[1752769666030,16.45134936,172.97,172.96,0.06]
[1752769666031,25.80980467,172.97,172.96,0.06]
[1752769666593,10.0,172.96,172.95,0.2]
[1752769666799,10.0,172.9,172.89,0.06]
[1752769667108,10.0,172.9,172.89,9.41845531]
[1752769667300,10.67,172.9,172.89,0.06]
[1752769668217,16.45368999,172.9,172.89,0.06]
[1752769668416,17.03182492,172.9,172.89,0.06]
[1752769669104,16.45368999,172.9,172.89,0.06]
[1752769669600,17.03182492,172.9,172.89,0.06]
[1752769669997,10.0,172.83,172.78,0.2]
[1752769670316,27.20111497,172.9,172.78,0.2]
[1752769670317,10.0,172.82,172.81,9.35845531]
[1752769670523,10.0,172.8,172.79,30.56]
[1752769670705,10.0,172.81,172.79,39.91845531]
[1752769670909,10.0,172.8,172.79,9.35845531]
[1752769671214,10.0,172.81,172.79,52.14313928]
[1752769671426,10.0,172.81,172.8,9.35845531]
[1752769671608,10.67,172.81,172.8,9.35845531]
[1752769672600,10.0,172.79,172.78,0.2]
[1752769672923,10.0,172.79,172.78,15.34616222]
[1752769673316,10.0,172.79,172.78,9.55845531]
[1752769673725,10.67,172.79,172.78,0.2]
[1752769674605,17.03550688,172.79,172.78,0.2]
[1752769675423,26.39396219,172.79,172.78,0.2]
[1752769676807,17.03550688,172.79,172.78,0.2]
[1752769677117,26.39396219,172.79,172.78,0.2]
[1752769677722,17.03550688,172.79,172.78,0.2]
[1752769678221,26.39396219,172.79,172.78,0.2]
[1752769678525,10.67,172.79,172.78,9.55845531]
[1752769678701,10.0,172.79,172.78,9.55845531]
[1752769679520,10.67,172.79,172.78,9.55845531]
[1752769680031,10.67,172.79,172.78,0.2]
[1752769680218,16.45737195,172.79,172.78,0.2]
[1752769680519,25.81582726,172.79,172.78,0.2]
[1752769680998,10.0,172.73,172.72,0.06]
[1752769681326,10.0,172.73,172.71,0.06]
[1752769681327,10.0,172.67,172.66,0.2]
[1752769681813,10.67,172.67,172.66,0.2]
[1752769682200,20.02845531,172.67,172.66,0.2]
[1752769682399,27.33494929,172.67,172.66,0.2]
[1752769682622,48.71649398,172.67,172.66,0.2]
[1752769682934,58.07494929,172.67,172.66,0.2]
[1752769684803,48.71649398,172.67,172.66,0.2]
[1752769685113,58.07494929,172.67,172.66,0.2]
[1752769685725,10.0,172.65,172.64,0.06]
[1752769685942,19.93659024,172.65,172.61,0.2]
[1752769686101,50.83845531,172.64,172.61,0.2]
[1752769686521,73.41553965,172.64,172.63,1e-08]
[1752769686721,105.45523965,172.64,172.63,1e-08]
[1752769686927,105.45523965,172.64,172.61,0.2]
[1752769686928,26.0,172.62,172.61,0.2]
[1752769687121,62.72127421,172.62,172.61,1e-08]
[1752769687324,62.72127421,172.62,172.56,2.01682705]
[1752769687325,10.0,172.57,172.56,2.01682705]
[1752769687508,40.76,172.57,172.56,2.01682705]
[1752769687708,42.03813493,172.57,172.56,2.01682705]
[1752769688127,10.57813493,172.57,172.56,11.37528236]
[1752769688332,10.57813493,172.57,172.56,2.01682705]
[1752769688333,11.27813493,172.57,172.56,2.01682705]
[1752769688623,17.07288488,172.57,172.56,2.01682705]
[1752769689211,17.07288488,172.57,172.53,0.2]
[1752769689212,48.97781508,172.57,172.53,0.2]
[1752769689522,10.0,172.53,172.52,6.95131957]
[1752769689724,36.0,172.51,172.5,1000.0]
[1752769689967,62.72127421,172.51,172.5,1000.0]
[1752769690506,68.51803961,172.51,172.5,1000.0]
[1752769690706,33.1595843,172.51,172.5,1000.0]
[1752769690916,16.37490033,172.51,172.5,1000.0]
[1752769691121,10.0,172.51,172.5,1000.0]
[1752769691434,10.0,172.51,172.5,1009.35845531]
[1752769691631,10.0,172.51,172.5,1010.04845531]
[1752769691818,10.0,172.51,172.5,1000.69]
[1752769692017,10.0,172.51,172.5,1010.04845531]
[1752769692330,10.0,172.51,172.5,1000.69]
[1752769692532,9.28,172.51,172.5,1015.84555675]
[1752769692718,9.28,172.54,172.52,26.0]
[1752769692917,9.28,172.55,172.53,36.04845531]
[1752769693136,9.28,172.58,172.55,26.0]
[1752769693319,9.28,172.58,172.57,9.35845531]
[1752769693506,9.28,172.6,172.57,10.04845531]
[1752769693831,9.28,172.6,172.59,35.35845531]
[1752769694049,9.28,172.6,172.59,36.04845531]
[1752769694214,9.28,172.6,172.59,26.69]
[1752769694538,9.28,172.6,172.59,35.35845531]
[1752769694832,9.28,172.6,172.59,10.04845531]
[1752769695134,9.28,172.61,172.59,45.40691062]
[1752769695326,9.28,172.62,172.6,41.04845531]
[1752769695510,9.28,172.63,172.61,10.04845531]
[1752769695714,9.28,172.63,172.62,10.04845531]
[1752769695918,9.28,172.64,172.62,0.69]
[1752769696113,9.28,172.63,172.62,26.0]
[1752769696327,9.28,172.64,172.62,26.69]
[1752769696641,9.28,172.64,172.63,0.69]
[1752769696826,9.28,172.64,172.62,26.0]
[1752769697026,9.28,172.64,172.63,14.34963604]
[1752769698615,9.28,172.64,172.63,15.03963604]
[1752769698816,9.28,172.64,172.63,20.83237194]
[1752769699021,9.28,172.66,172.63,51.81237194]
[1752769699238,9.28,172.68,172.65,14.34963604]
[1752769699439,9.28,172.68,172.67,14.34963604]
[1752769699623,9.28,172.68,172.67,15.03963604]
[1752769700451,9.28,172.69,172.67,15.03963604]
[1752769700618,7.0654,172.75,172.68,15.03963604]
[1752769700619,9.28,172.72,172.68,15.03963604]
[1752769700818,9.28,172.7,172.69,31.67]
[1752769701338,9.28,172.7,172.69,26.0]
[1752769701539,9.28,172.7,172.69,41.03963604]
[1752769702352,9.28,172.7,172.64,1.26924003]
[1752769702520,9.28,172.67,172.64,57.73]
[1752769702845,9.28,172.67,172.66,14.34963604]
[1752769703042,9.28,172.65,172.64,57.73]
[1752769703225,9.28,172.65,172.64,71.38963604]
[1752769703432,9.28,172.65,172.64,46.07963604]
[1752769703642,9.28,172.66,172.64,46.07963604]
[1752769703834,9.28,172.65,172.64,31.04]
[1752769704019,9.28,172.65,172.64,45.38963604]
[1752769704222,9.28,172.66,172.64,51.18203641]
[1752769704530,9.28,172.66,172.65,15.03963604]
[1752769704971,9.28,172.68,172.65,20.83170091]
[1752769705231,9.28,172.74,172.72,26.0]
[1752769705547,9.28,172.74,172.73,15.03963604]
[1752769705920,9.28,172.75,172.73,15.03963604]
[1752769706243,9.28,172.75,172.74,15.03963604]
[1752769706549,9.31,172.78,172.75,16.78468397]
[1752769706720,0.03,172.78,172.77,20.13767794]
[1752769706923,9.28,172.82,172.8,26.0]
[1752769707220,9.28,172.83,172.81,15.03963604]
[1752769707421,9.28,172.83,172.8,57.0]
[1752769707628,9.28,172.82,172.8,57.0]
[1752769707827,9.28,172.82,172.8,14.34963604]
[1752769708043,9.28,172.79,172.78,14.34963604]
[1752769708846,9.28,172.79,172.77,26.0]
[1752769709051,9.28,172.79,172.78,14.34963604]
[1752769709855,15.06737195,172.79,172.78,14.34963604]
[1752769710352,15.06737195,172.79,172.76,26.0]
[1752769710540,15.06737195,172.79,172.78,14.34963604]
[1752769710850,9.28,172.77,172.76,26.0]
[1752769711053,9.28,172.77,172.76,40.34963604]
[1752769711231,9.28,172.77,172.75,14.34963604]
[1752769711232,9.28,172.76,172.75,14.34963604]
[1752769711628,9.28,172.77,172.73,26.0]
[1752769711836,9.28,172.77,172.76,14.34963604]
[1752769712721,9.28,172.77,172.76,41.03963604]
[1752769713140,9.28,172.77,172.76,26.69]
[1752769713363,9.28,172.78,172.76,41.03963604]
[1752769713660,9.28,172.79,172.77,46.02963604]
[1752769713861,9.28,172.78,172.76,26.0]
[1752769714156,9.28,172.78,172.77,14.34963604]
[1752769714730,9.28,172.76,172.74,31.08]
[1752769715033,9.28,172.77,172.75,14.34963604]
[1752769715238,9.28,172.77,172.76,14.34963604]
[1752769715538,9.28,172.77,172.76,15.02963604]
[1752769716350,9.28,172.77,172.76,14.34963604]
[1752769716536,9.28,172.77,172.76,15.02963604]
[1752769716937,9.28,172.77,172.76,41.02963604]
[1752769717345,9.28,172.77,172.76,40.34963604]
[1752769717531,5.78770813,172.78,172.76,40.34963604]
[1752769717947,9.28,172.77,172.74,0.68]
[1752769718139,9.28,172.77,172.76,14.34963604]
[1752769718852,9.28,172.77,172.76,26.0]
[1752769719153,9.28,172.77,172.76,0.06]
[1752769719355,15.0680419,172.77,172.76,9.43449199]
[1752769719854,9.28,172.77,172.76,10.11449199]
[1752769720533,9.28,172.77,172.76,0.06]
[1752769720534,15.7780419,172.77,172.76,0.06]
[1752769721128,25.15253389,172.77,172.76,0.06]
[1752769721639,25.15253389,172.77,172.76,1e-08]
[1752769723430,48.18751786,172.77,172.76,1e-08]
[1752769724529,9.28,172.7,172.69,0.06]
[1752769724745,9.28,172.7,172.69,9.43449199]
[1752769724930,9.28,172.7,172.69,10.11449199]
[1752769725333,9.28,172.7,172.69,15.90521525]
[1752769725539,9.28,172.7,172.69,0.74]
[1752769725760,9.28,172.7,172.69,10.11449199]
[1752769726056,9.28,172.75,172.72,26.0]
[1752769726245,9.28,172.77,172.73,0.68]
[1752769726452,9.28,172.75,172.73,0.68]
[1752769726650,0.03,172.78,172.73,0.68]
[1752769726651,9.31,172.78,172.73,0.68]
[1752769726850,9.31,172.78,172.74,16.78468397]
[1752769727048,0.03,172.78,172.77,26.0]
[1752769727488,0.03,172.78,172.77,32.4680419]
[1752769727767,0.03,172.78,172.77,41.84253389]
[1752769728650,0.03,172.78,172.77,59.20602205]
[1752769729040,0.03,172.78,172.77,78.46484746]
[1752769729736,9.28,172.81,172.77,78.46484746]
[1752769729737,9.28,172.84,172.77,92.93495222]
[1752769730062,9.28,172.84,172.79,16.78468397]
[1752769730360,9.28,172.84,172.83,14.3166587]
[1752769730560,9.28,172.84,172.79,16.78468397]
[1752769730861,9.28,172.83,172.8,0.68]
[1752769731059,9.28,172.81,172.79,26.0]
[1752769731629,9.28,172.79,172.75,48.40355517]
[1752769731957,9.28,172.76,172.75,31.04]
[1752769732161,9.28,172.76,172.75,45.3566587]
[1752769732334,9.28,172.76,172.75,14.3166587]
[1752769732535,9.28,172.77,172.75,14.3166587]
[1752769732745,9.28,172.77,172.76,14.9966587]
[1752769733142,9.28,172.77,172.76,0.68]
[1752769733436,9.28,172.77,172.76,14.9966587]
[1752769733759,9.28,172.77,172.76,14.3166587]
[1752769734341,9.28,172.77,172.74,0.68]
[1752769734639,9.28,172.77,172.76,14.3166587]
[1752769735039,9.28,172.75,172.74,0.68]
[1752769735242,9.28,172.76,172.75,26.0]
[1752769735441,9.28,172.76,172.75,40.3166587]
[1752769735638,9.28,172.76,172.74,0.68]
[1752769735952,9.28,172.75,172.74,0.68]
[1752769736256,9.28,172.75,172.74,14.9966587]
[1752769736554,9.28,172.74,172.73,31.06]
[1752769736734,9.28,172.75,172.73,26.0]
[1752769736936,9.28,172.74,172.73,26.0]
[1752769737234,9.28,172.74,172.71,31.02]
[1752769737235,9.28,172.73,172.71,31.02]
[1752769737435,1.28813493,172.78,172.69,6.5304684]
[1752769737436,9.28,172.7,172.69,17.52468397]
[1752769737641,9.28,172.7,172.69,67.97206593]
[1752769738057,9.28,172.7,172.69,62.18134267]
[1752769738258,5.78913409,172.74,172.69,62.18134267]
[1752769738259,9.28,172.71,172.69,46.0766587]
[1752769738443,9.28,172.71,172.7,14.3166587]
[1752769739251,9.28,172.72,172.7,20.78704665]
[1752769739448,9.28,172.71,172.69,36.87061705]
[1752769739649,9.28,172.7,172.69,0.06]
[1752769739978,9.28,172.7,172.69,14.3766587]
[1752769740357,9.28,172.7,172.69,0.06]
[1752769740547,9.28,172.7,172.69,14.3766587]
[1752769741263,9.28,172.7,172.69,15.0566587]
[1752769741455,9.28,172.7,172.69,46.0366587]
[1752769741660,9.28,172.7,172.69,0.06]
[1752769741962,9.28,172.7,172.69,14.3766587]
[1752769742367,9.28,172.7,172.69,0.06]
[1752769742575,9.28,172.7,172.69,14.3766587]
[1752769742752,9.28,172.7,172.69,0.06]
[1752769742954,15.07038795,172.7,172.69,0.06]
[1752769743263,15.78038795,172.7,172.69,0.06]
[1752769743465,9.28,172.7,172.69,0.06]
[1752769743642,9.28,172.7,172.69,14.3766587]
[1752769743967,9.28,172.7,172.69,0.06]
[1752769744265,16.31852288,172.7,172.69,0.06]
[1752769744445,30.63518158,172.7,172.69,0.06]
[1752769744648,45.11115146,172.7,172.59,0.69]
[1752769744844,9.28,172.63,172.61,14.3166587]
[1752769745047,9.28,172.63,172.61,40.3166587]
[1752769745256,9.28,172.63,172.57,22.57933895]
[1752769745257,9.95,172.62,172.57,16.78468397]
[1752769745456,9.95,172.62,172.53,1.591]
[1752769745457,9.28,172.58,172.56,5.79501746]
[1752769745655,9.28,172.59,172.58,26.0]
[1752769745842,9.28,172.6,172.58,14.3166587]